fUSD/lending_fUSD_20260202
["ID","MTS","AMOUNT","RATE_DAILY","PERIOD"]
[404350815,1770071438584,-150.0,9.97e-05,2]
[404350816,1770071438593,-150.0,9.97e-05,2]
[404350817,1770071438602,-682.98,9.97e-05,2]
[404350818,1770071438611,-150.0,9.97e-05,2]
[404350819,1770071438620,-559.85,9.97e-05,2]
[404350820,1770071438630,-150.0,9.97e-05,2]
[404350821,1770071438639,-360.58,9.97e-05,2]
[404350822,1770071438648,-1000.0,9.994e-05,2]
[404350823,1770071438659,-151.0,0.0001,2]
[404350824,1770071438669,-151.0,0.0001,2]
[404350825,1770071438678,-1233.94,0.0001,2]
[404350826,1770071438687,-172.53,0.0001,2]
[404350827,1770071438696,-180.29,0.0001,2]
[404350828,1770071438705,-1233.94,0.0001,2]
[404350829,1770071438714,-172.53,0.0001,2]
[404350830,1770071438723,-180.29,0.0001,2]
[404350831,1770071438733,-180.29,0.0001,2]
[404350832,1770071438742,-1233.94,0.0001,2]
[404350833,1770071438751,-171.29,0.0001,2]
[404350834,1770071438760,-1223.45,0.0001,2]
[404350835,1770071438770,-200.0,0.0001,2]
[404350836,1770071438779,-151.0,0.0001,2]
[404350837,1770071438788,-151.0,0.0001,2]
[404350838,1770071438796,-151.0,0.0001,2]
[404350839,1770071438806,-151.0,0.0001,2]
[404350840,1770071438815,-151.0,0.0001,2]
[404350841,1770071438824,-151.0,0.0001,2]
[404350842,1770071438833,-151.0,0.0001,2]
[404350843,1770071438842,-151.0,0.0001,2]
[404350844,1770071438851,-151.0,0.0001,2]
[404350845,1770071438860,-151.0,0.0001,2]
[404350846,1770071438869,-151.0,0.0001,2]
[404350847,1770071438879,-151.0,0.0001,2]
[404350848,1770071438887,-151.0,0.0001,2]
[404350849,1770071438897,-151.0,0.0001,2]
[404350850,1770071438907,-151.0,0.0001,2]
[404350851,1770071438917,-151.0,0.0001,2]
[404350852,1770071438926,-151.0,0.0001,2]
[404350853,1770071438935,-151.0,0.0001,2]
[404350854,1770071438944,-151.0,0.0001,2]
[404350855,1770071438953,-500.0,0.0001,2]
[404350856,1770071438963,-151.0,0.0001,2]
[404350857,1770071438972,-500.0,0.0001,2]
[404350858,1770071438982,-151.0,0.0001,2]
[404350859,1770071438991,-500.0,0.0001,2]
[404350860,1770071439000,-151.0,0.0001,2]
[404350861,1770071439011,-174.66687349,0.0001,2]
[404350862,1770071439262,-151.0,0.0001,2]
[404350863,1770071439271,-500.0,0.0001,2]
[404350864,1770071439281,-151.0,0.0001,2]
[404350865,1770071439290,-500.0,0.0001,2]
[404350866,1770071439299,-151.0,0.0001,2]
[404350867,1770071439309,-500.0,0.0001,2]
[404350868,1770071439317,-151.0,0.0001,2]
[404350869,1770071439326,-500.0,0.0001,2]
[404350870,1770071439335,-151.0,0.0001,2]
[404350871,1770071439344,-151.0,0.0001,2]
[404350872,1770071439353,-500.0,0.0001,2]
[404350873,1770071439363,-151.0,0.0001,2]
[404350874,1770071439372,-500.0,0.0001,2]
[404350875,1770071439381,-151.0,0.0001,2]
[404350876,1770071439390,-500.0,0.0001,2]
[404350877,1770071439399,-500.0,0.0001,2]
[404350878,1770071439408,-151.0,0.0001,2]
[404350879,1770071439417,-500.0,0.0001,2]
[404350880,1770071439427,-500.0,0.0001,2]
[404350881,1770071439436,-500.0,0.0001,2]
[404350882,1770071439445,-500.0,0.0001,2]
[404350883,1770071439455,-500.0,0.0001,2]
[404350884,1770071439464,-500.0,0.0001,2]
[404350885,1770071439473,-500.0,0.0001,2]
[404350886,1770071439482,-500.0,0.0001,2]
[404350887,1770071439492,-500.0,0.0001,2]
[404350888,1770071439501,-500.0,0.0001,2]
[404350889,1770071439510,-500.0,0.0001,2]
[404350890,1770071439519,-200.0,0.0001,2]
[404350891,1770071439529,-150.0087681,0.0001,2]
[404350892,1770071439538,-500.0,0.0001,2]
[404350893,1770071439547,-1934.27557243,0.0001,2]
[404350894,1770071439557,-2739.56919757,0.0001,2]
[404350895,1770071439567,-22827.91268213,0.0001,2]
[404350896,1770071439576,-864.56091314,0.0001,2]
[404350897,1770071439589,-915.85779872,0.0001,2]
[404350898,1770071439598,-898.25,0.00010039,2]
[404350899,1770071439608,-915.85779872,0.00010059,2]
[404350900,1770071439617,-278501.50430832,0.00010069,2]
[404350901,1770071439628,-150.0,0.000101,2]
[404350902,1770071439637,-172.53,0.000101,2]
[404350903,1770071439647,-1233.02,0.000101,2]
[404350904,1770071439658,-172.53,0.000101,2]
[404350905,1770071439668,-172.53,0.000101,2]
[404350906,1770071439679,-172.53,0.000101,2]
[404350907,1770071439690,-1119.7,0.000101,2]
[404350908,1770071439701,-150.0,0.000101,2]
[404350909,1770071439710,-150.0,0.000101,2]
[404350910,1770071439720,-150.0,0.000101,2]
[404350911,1770071439729,-150.0,0.000101,2]
[404350912,1770071439738,-150.0,0.000101,2]
[404350913,1770071439747,-150.0,0.000101,2]
[404350914,1770071439757,-469.55,0.000101,2]
[404350915,1770071439768,-150.0,0.000101,2]
[404350916,1770071439779,-150.0,0.000101,2]
[404350917,1770071439790,-469.55,0.000101,2]
[404350918,1770071439800,-150.0,0.000101,2]
[404350919,1770071439811,-469.55,0.000101,2]
[404350920,1770071439822,-150.0,0.000101,2]
[404350921,1770071439831,-1233.94,0.000101,2]
[404350922,1770071439840,-172.53,0.000101,2]
[404350923,1770071439850,-1103.39,0.000101,2]
[404350924,1770071439861,-180.29,0.000101,2]
[404350925,1770071439871,-172.53,0.000101,2]
[404350926,1770071439882,-1233.94,0.000101,2]
[404350927,1770071439891,-180.29,0.000101,2]
[404350928,1770071439903,-260.20985881,0.000101,2]
[404350929,1770071439913,-500.0,0.00010188,2]
[404350930,1770071439923,-850.82,0.00010188,2]
[404350931,1770071439932,-204.4435957,0.00010358,2]
[404350932,1770071439941,-500.0,0.00010462,2]
[404350933,1770071439950,-850.82,0.00010462,2]
[404350934,1770071439959,-420.0,0.00010494,2]
[404350935,1770071439968,-1680.0,0.00010494,2]
[404350936,1770071439977,-420.0,0.00010494,2]
[404350937,1770071439988,-193.0,0.00010494,2]
[404350938,1770071439997,-500.0,0.00010494,2]
[404350939,1770071440007,-500.0,0.00010495,2]
[404350940,1770071440017,-250.0,0.00010495,2]
[404350941,1770071440027,-193.0,0.00010495,2]
[404350942,1770071440036,-500.0,0.00010495,2]
[404350943,1770071440045,-200.0,0.00010548,2]
[404350944,1770071440054,-200.0,0.00010548,2]
[404350945,1770071440063,-500.0,0.00010548,2]
[404350946,1770071440072,-255.0,0.00010603,2]
[404350948,1770071440081,-250.0,0.00010604,2]
[404350950,1770071440090,-500.0,0.00010604,2]
[404350951,1770071440100,-162.0,0.0001063,2]
[404350952,1770071440109,-233.0,0.00010651,2]
[404350953,1770071440118,-201.34643617,0.00010654,2]
[404350954,1770071440128,-1831.02459596,0.00010669,2]
[404350955,1770071440136,-268.67078659,0.000107,2]
[404350956,1770071440147,-721056.9202,0.00010727,2]
[404350957,1770071440157,-500.0,0.00010736,2]
[404350958,1770071440166,-850.82,0.00010736,2]
[404350959,1770071440177,-53598.50792797,0.00010739,2]
[404350960,1770071440186,-1029.34213251,0.000108,2]
[404350961,1770071440197,-296.09,0.000108,2]
[404350962,1770071440207,-3558.8599527,0.00010802,2]
[404350963,1770071440218,-320253.5850391,0.00010885,2]
[404350964,1770071440228,-500.0,0.00010959,2]
[404350965,1770071440238,-184.11,0.00010959,2]
[404350966,1770071440247,-150.0,0.00010959,2]
[404350967,1770071440258,-500.0,0.0001101,2]
[404350968,1770071440269,-850.82,0.0001101,2]
[404350969,1770071440281,-200.0,0.00011096,2]
[404350970,1770071440291,-200.0,0.00011096,2]
[404350971,1770071440301,-500.0,0.00011096,2]
[404350972,1770071440313,-53629.94716634,0.00011099,2]
[404350973,1770071440323,-53629.94716632,0.00011099,2]
[404350974,1770071440333,-53629.94716632,0.00011099,2]
[404350975,1770071440344,-53629.94716632,0.00011099,2]
[404350976,1770071440354,-53629.94716632,0.00011099,2]
[404350977,1770071440364,-53629.94716632,0.00011099,2]
[404350978,1770071440373,-53629.94716632,0.00011099,2]
[404350979,1770071440382,-53629.94716632,0.00011099,2]
[404350980,1770071440397,-53629.94716632,0.00011099,2]
[404350981,1770071440406,-53629.94716632,0.00011099,2]
[404350982,1770071440415,-1000.0,0.00011104,2]
[404350983,1770071440424,-212.94,0.00011233,2]
[404350984,1770071440433,-370.39,0.00011265,2]
[404350985,1770071440442,-500.0,0.00011284,2]
[404350986,1770071440451,-850.82,0.00011284,2]
[404350987,1770071440460,-150.0087681,0.00011294,2]
[404350988,1770071440469,-247.0,0.00011297,2]
[404350989,1770071440478,-283.0,0.00011319,2]
[404350990,1770071440487,-324.0,0.00011342,2]
[404350991,1770071440496,-213.14,0.00011385,2]
[404350992,1770071440504,-552.0,0.00011497,2]
[404350993,1770071440514,-1704.0,0.0001152,2]
[404350994,1770071440523,-627.0,0.00011543,2]
[404350995,1770071440531,-587.0,0.00011544,2]
[404350996,1770071440541,-2351.0,0.00011544,2]
[404350997,1770071440550,-587.0,0.00011544,2]
[404350998,1770071440559,-500.0,0.00011558,2]
[404350999,1770071440567,-850.82,0.00011558,2]
[404351000,1770071440576,-200.0,0.00011644,2]
[404351001,1770071440588,-200.0,0.00011644,2]
[404351002,1770071440597,-500.0,0.00011644,2]
[404351003,1770071440606,-433.0,0.00011663,2]
[404351004,1770071440616,-1600.0,0.00011672,2]
[404351005,1770071440626,-500.0,0.00011832,2]
[404351006,1770071440635,-850.82,0.00011832,2]
[404351007,1770071440644,-320253.5850391,0.0001203,2]
[404351008,1770071440655,-500.0,0.00012106,2]
[404351009,1770071440664,-850.82,0.00012106,2]
[404351010,1770071440672,-200.0,0.00012192,2]
[404351011,1770071440682,-200.0,0.00012192,2]
[404351012,1770071440690,-500.0,0.00012192,2]
[404351013,1770071440699,-1000.0,0.00012215,2]
[404351014,1770071440708,-1617.53493796,0.00012237,2]
[404351015,1770071440717,-160.29771235,0.00012237,2]
[404351016,1770071440725,-850.82,0.0001238,2]
[404351017,1770071440734,-151.0,0.00012398,2]
[404351018,1770071440744,-150.0087681,0.00012589,2]
[404351019,1770071440753,-250.0,0.00012605,2]
[404351020,1770071440762,-850.82,0.00012654,2]
[404351021,1770071440771,-915.85779872,0.0001268,2]
[404351022,1770071440782,-193705.37119555,0.0001269,2]
[404351023,1770071440791,-823.0,0.00012698,2]
[404351024,1770071440800,-3292.0,0.00012698,2]
[404351025,1770071440809,-823.0,0.00012698,2]
[404351026,1770071440818,-864.56091313,0.00012731,2]
[404351027,1770071440827,-151.0,0.00012735,2]
[404351028,1770071440836,-151.0,0.00012735,2]
[404351029,1770071440845,-200.0,0.0001274,2]
[404351030,1770071440854,-200.0,0.0001274,2]
[404351031,1770071440863,-500.0,0.0001274,2]
[404351032,1770071440872,-256.85,0.00012762,2]
[404351033,1770071440881,-151.0,0.00012772,2]
[404351034,1770071440890,-151.0,0.00012772,2]
[404351035,1770071440901,-151.0,0.00012773,2]
[404351036,1770071440910,-151.0,0.00012773,2]
[404351037,1770071440919,-151.0,0.00012773,2]
[404351038,1770071440928,-151.0,0.00012773,2]
[404351039,1770071440938,-736.0,0.0001283,2]
[404351040,1770071440947,-270.94,0.00012877,2]
[404351041,1770071440956,-850.82,0.00012928,2]
[404351042,1770071440966,-4433.94000455,0.00013,2]
[404351043,1770071440975,-322.6107,0.00013029,2]
[404351044,1770071440985,-284.46263798,0.00013029,2]
[404351045,1770071440995,-250.0,0.00013029,2]
[404351046,1770071441004,-250.0,0.00013029,2]
[404351047,1770071441014,-250.0,0.00013029,2]
[404351048,1770071441023,-250.0,0.00013029,2]
[404351049,1770071441032,-250.0,0.00013029,2]
[404351050,1770071441043,-209.40437684,0.00013029,2]
[404351051,1770071441052,-250.0,0.00013029,2]
[404351052,1770071441061,-250.0,0.00013029,2]
[404351053,1770071441070,-250.0,0.00013029,2]
[404351054,1770071441079,-250.0,0.00013029,2]
[404351055,1770071441088,-250.0,0.00013029,2]
[404351056,1770071441097,-500.0,0.00013029,2]
[404351057,1770071441106,-500.0,0.00013029,2]
[404351058,1770071441116,-500.0,0.00013029,2]
[404351059,1770071441125,-500.0,0.00013029,2]
[404351060,1770071441134,-500.0,0.00013029,2]
[404351061,1770071441143,-500.0,0.00013029,2]
[404351062,1770071441152,-578.20924308,0.00013029,2]
[404351063,1770071441161,-500.0,0.00013029,2]
[404351064,1770071441169,-250.0,0.00013029,2]
[404351065,1770071441178,-500.0,0.00013029,2]
[404351066,1770071441188,-250.0,0.00013029,2]
[404351067,1770071441197,-500.0,0.00013029,2]
[404351068,1770071441205,-500.0,0.00013029,2]
[404351069,1770071441214,-250.0,0.00013029,2]
[404351070,1770071441223,-500.0,0.00013029,2]
[404351071,1770071441232,-250.0,0.00013029,2]
[404351072,1770071441240,-1428.38747117,0.00013029,2]
[404351073,1770071441250,-250.0,0.00013029,2]
[404351074,1770071441259,-151.0,0.00013029,2]
[404351075,1770071441269,-721.12765535,0.00013029,2]
[404351076,1770071441281,-174.61919141,0.00013029,2]
[404351077,1770071441291,-209.40437684,0.00013029,2]
[404351078,1770071441302,-5353.89966494,0.0001305,2]
[404351079,1770071441311,-217.15233878,0.00013084,2]
[404351080,1770071441321,-1600.0,0.00013131,2]
[404351081,1770071441333,-225.18697532,0.00013139,2]
[404351082,1770071441342,-151.0,0.00013171,2]
[404351083,1770071441352,-320253.5850391,0.00013174,2]
[404351084,1770071441361,-233.51889341,0.00013194,2]
[404351085,1770071441370,-850.82,0.00013202,2]
[404351086,1770071441379,-242.15909246,0.00013249,2]
[404351087,1770071441389,-20153.15,0.00013286,2]
[404351088,1770071441399,-200.0,0.00013288,2]
[404351089,1770071441407,-208.65826531,0.00013288,2]
[404351090,1770071441417,-500.0,0.00013288,2]
[404351091,1770071441425,-251.11897888,0.00013304,2]
[404351092,1770071441434,-1000.0,0.00013325,2]
[404351093,1770071441443,-260.4103811,0.00013359,2]
[404351094,1770071441452,-270.0455652,0.00013414,2]
[404351095,1770071441461,-280.03725112,0.00013469,2]
[404351096,1770071441471,-850.82,0.00013476,2]
[404351097,1770071441479,-183.76045452,0.000135,2]
[404351098,1770071441488,-290.39862941,0.00013524,2]
[404351099,1770071441497,-217.15233878,0.00013577,2]
[404351100,1770071441505,-1481.23780761,0.00013577,2]
[404351101,1770071441514,-151.0,0.00013577,2]
[404351102,1770071441523,-181.08010149,0.00013577,2]
[404351103,1770071441532,-301.1433787,0.00013579,2]
[404351104,1770071441540,-500.0,0.00013698,2]
[404351105,1770071441549,-500.0,0.00013698,2]
[404351106,1770071441558,-500.0,0.00013698,2]
[404351107,1770071441566,-500.0,0.00013698,2]
[404351108,1770071441575,-500.0,0.00013698,2]
[404351109,1770071441588,-500.0,0.00013698,2]
[404351110,1770071441599,-296.70673574,0.00013698,2]
[404351111,1770071441609,-500.0,0.00013698,2]
[404351112,1770071441620,-500.0,0.00013698,2]
[404351113,1770071441632,-500.0,0.00013698,2]
[404351114,1770071441643,-500.0,0.00013698,2]
[404351115,1770071441654,-500.0,0.00013698,2]
[404351116,1770071441664,-500.0,0.00013698,2]
[404351117,1770071441674,-500.0,0.00013698,2]
[404351118,1770071441684,-500.0,0.00013698,2]
[404351119,1770071441694,-500.0,0.00013698,2]
[404351120,1770071441703,-500.0,0.00013698,2]
[404351121,1770071441714,-507.90611429,0.00013698,2]
[404351122,1770071441724,-500.0,0.00013698,2]
[404351123,1770071441735,-846.12,0.00013698,2]
[404351124,1770071441744,-500.0,0.00013698,2]
[404351125,1770071441754,-846.12,0.00013698,2]
[404351126,1770071441763,-500.0,0.00013698,2]
[404351127,1770071441772,-846.12,0.00013698,2]
[404351128,1770071441782,-500.0,0.00013698,2]
[404351129,1770071441791,-846.12,0.00013698,2]
[404351130,1770071441802,-500.0,0.00013698,2]
[404351131,1770071441812,-500.0,0.00013698,2]
[404351132,1770071441822,-510.82232822,0.00013698,2]
[404351133,1770071441834,-846.12,0.00013698,2]
[404351134,1770071441845,-846.12,0.00013698,2]
[404351135,1770071441856,-846.12,0.00013698,2]
[404351136,1770071441866,-846.12,0.00013698,2]
[404351137,1770071441878,-846.12,0.00013698,2]
[404351138,1770071441888,-846.12,0.00013698,2]
[404351139,1770071441898,-846.12,0.00013698,2]
[404351140,1770071441907,-846.12,0.00013698,2]
[404351141,1770071441917,-846.12,0.00013698,2]
[404351142,1770071441926,-846.12,0.00013698,2]
[404351143,1770071441935,-846.12,0.00013698,2]
[404351144,1770071441945,-846.12,0.00013698,2]
[404351145,1770071441955,-846.12,0.00013698,2]
[404351146,1770071441964,-846.12,0.00013698,2]
[404351147,1770071441975,-846.12,0.00013698,2]
[404351148,1770071441985,-846.12,0.00013698,2]
[404351149,1770071441995,-846.12,0.00013698,2]
[404351150,1770071442005,-846.12,0.00013698,2]
[404351151,1770071442015,-846.12,0.00013698,2]
[404351152,1770071442025,-846.2298754,0.00013698,2]
[404351153,1770071442034,-649.78,0.00013698,2]
[404351154,1770071442044,-649.78,0.00013698,2]
[404351155,1770071442058,-649.78,0.00013698,2]
[404351156,1770071442068,-649.78,0.00013698,2]
[404351157,1770071442077,-649.78,0.00013698,2]
[404351158,1770071442088,-649.78,0.00013698,2]
[404351159,1770071442098,-649.78,0.00013698,2]
[404351160,1770071442108,-649.78,0.00013698,2]
[404351161,1770071442118,-649.78,0.00013698,2]
[404351162,1770071442127,-649.78,0.00013698,2]
[404351163,1770071442137,-649.78,0.00013698,2]
[404351164,1770071442146,-649.78,0.00013698,2]
[404351165,1770071442155,-649.78,0.00013698,2]
[404351166,1770071442164,-649.78,0.00013698,2]
[404351167,1770071442173,-649.78,0.00013698,2]
[404351168,1770071442182,-649.78,0.00013698,2]
[404351169,1770071442192,-649.78,0.00013698,2]
[404351170,1770071442213,-649.78,0.00013698,2]
[404351171,1770071442225,-649.78,0.00013698,2]
[404351172,1770071442236,-649.78,0.00013698,2]
[404351173,1770071442246,-649.78,0.00013698,2]
[404351174,1770071442257,-649.78,0.00013698,2]
[404351175,1770071442267,-649.78,0.00013698,2]
[404351176,1770071442277,-649.95670735,0.00013698,2]
[404351177,1770071442287,-500.0,0.00013698,2]
[404351178,1770071442296,-500.0,0.00013698,2]
[404351179,1770071442305,-500.0,0.00013698,2]
[404351180,1770071442314,-500.0,0.00013698,2]
[404351181,1770071442324,-500.0,0.00013698,2]
[404351182,1770071442335,-500.0,0.00013698,2]
[404351183,1770071442344,-500.0,0.00013698,2]
[404351184,1770071442354,-500.0,0.00013698,2]
[404351185,1770071442365,-500.0,0.00013698,2]
[404351186,1770071442376,-500.0,0.00013698,2]
[404351187,1770071442385,-500.0,0.00013698,2]
[404351188,1770071442395,-431.16604066,0.00013698,2]
[404351189,1770071442404,-500.0,0.00013698,2]
[404351190,1770071442414,-500.0,0.00013698,2]
[404351191,1770071442423,-500.0,0.00013698,2]
[404351192,1770071442433,-500.0,0.00013698,2]
[404351193,1770071442445,-500.0,0.00013698,2]
[404351194,1770071442454,-500.0,0.00013698,2]
[404351195,1770071442463,-500.0,0.00013698,2]
[404351196,1770071442473,-500.0,0.00013698,2]
[404351197,1770071442482,-500.0,0.00013698,2]
[404351198,1770071442491,-500.0,0.00013698,2]
[404351199,1770071442500,-378.11080496,0.00013698,2]
[404351200,1770071442509,-500.0,0.00013698,2]
[404351201,1770071442519,-500.0,0.00013698,2]
[404351202,1770071442527,-500.0,0.00013698,2]
[404351203,1770071442538,-500.0,0.00013698,2]
[404351204,1770071442547,-500.0,0.00013698,2]
[404351205,1770071442556,-500.0,0.00013698,2]
[404351206,1770071442565,-500.0,0.00013698,2]
[404351207,1770071442574,-500.0,0.00013698,2]
[404351208,1770071442587,-440.6625364,0.00013698,2]
[404351209,1770071442596,-811.57,0.00013698,2]
[404351210,1770071442606,-811.57,0.00013698,2]
[404351211,1770071442615,-811.57,0.00013698,2]
[404351212,1770071442625,-811.57,0.00013698,2]
[404351213,1770071442634,-811.57,0.00013698,2]
[404351214,1770071442643,-811.57,0.00013698,2]
[404351215,1770071442654,-811.57,0.00013698,2]
[404351216,1770071442664,-811.57,0.00013698,2]
[404351217,1770071442673,-811.57,0.00013698,2]
[404351218,1770071442682,-811.57,0.00013698,2]
[404351219,1770071442691,-811.57,0.00013698,2]
[404351220,1770071442700,-811.57,0.00013698,2]
[404351221,1770071442709,-811.57,0.00013698,2]
[404351222,1770071442719,-811.57,0.00013698,2]
[404351223,1770071442728,-811.57,0.00013698,2]
[404351225,1770071442737,-811.57,0.00013698,2]
[404351227,1770071442746,-811.57,0.00013698,2]
[404351228,1770071442755,-811.57,0.00013698,2]
[404351229,1770071442764,-811.57,0.00013698,2]
[404351230,1770071442773,-811.57,0.00013698,2]
[404351231,1770071442782,-811.57,0.00013698,2]
[404351232,1770071442793,-811.57,0.00013698,2]
[404351233,1770071442803,-811.57,0.00013698,2]
[404351234,1770071442814,-811.60997295,0.00013698,2]
[404351235,1770071442825,-500.0,0.00013698,2]
[404351236,1770071442835,-500.0,0.00013698,2]
[404351237,1770071442844,-500.0,0.00013698,2]
[404351238,1770071442855,-500.0,0.00013698,2]
[404351239,1770071442864,-500.0,0.00013698,2]
[404351240,1770071442873,-500.0,0.00013698,2]
[404351241,1770071442883,-500.0,0.00013698,2]
[404351242,1770071442892,-500.0,0.00013698,2]
[404351243,1770071442901,-500.0,0.00013698,2]
[404351244,1770071442910,-500.0,0.00013698,2]
[404351245,1770071442919,-500.0,0.00013698,2]
[404351246,1770071442929,-500.0,0.00013698,2]
[404351247,1770071442938,-500.0,0.00013698,2]
[404351248,1770071442947,-500.0,0.00013698,2]
[404351249,1770071442956,-500.0,0.00013698,2]
[404351250,1770071442965,-500.0,0.00013698,2]
[404351251,1770071442974,-500.0,0.00013698,2]
[404351252,1770071442983,-500.0,0.00013698,2]
[404351253,1770071442992,-500.0,0.00013698,2]
[404351254,1770071443001,-500.0,0.00013698,2]
[404351255,1770071443010,-500.0,0.00013698,2]
[404351256,1770071443019,-500.0,0.00013698,2]
[404351257,1770071443028,-500.0,0.00013698,2]
[404351258,1770071443037,-500.0,0.00013698,2]
[404351259,1770071443047,-500.0,0.00013698,2]
[404351260,1770071443055,-500.0,0.00013698,2]
[404351261,1770071443065,-224.99954883,0.00013698,2]
[404351262,1770071443074,-500.0,0.00013698,2]
[404351263,1770071443083,-500.0,0.00013698,2]
[404351264,1770071443091,-500.0,0.00013698,2]
[404351265,1770071443100,-500.0,0.00013698,2]
[404351266,1770071443109,-500.0,0.00013698,2]
[404351267,1770071443119,-500.0,0.00013698,2]
[404351268,1770071443128,-500.0,0.00013698,2]
[404351269,1770071443137,-500.0,0.00013698,2]
[404351270,1770071443147,-500.0,0.00013698,2]
[404351271,1770071443156,-500.0,0.00013698,2]
[404351272,1770071443165,-500.0,0.00013698,2]
[404351273,1770071443175,-500.0,0.00013698,2]
[404351274,1770071443184,-500.0,0.00013698,2]
[404351275,1770071443193,-500.0,0.00013698,2]
[404351276,1770071443202,-500.0,0.00013698,2]
[404351277,1770071443211,-500.0,0.00013698,2]
[404351278,1770071443220,-500.0,0.00013698,2]
[404351279,1770071443230,-346.60986891,0.00013698,2]
[404351280,1770071443391,-1540.59,0.00013698,2]
[404351281,1770071443423,-1540.59,0.00013698,2]
[404351282,1770071443434,-1540.59,0.00013698,2]
[404351283,1770071443446,-1540.59,0.00013698,2]
[404351284,1770071443460,-1540.59,0.00013698,2]
[404351285,1770071443470,-1540.59,0.00013698,2]
[404351286,1770071443479,-1540.59,0.00013698,2]
[404351287,1770071443488,-1540.59,0.00013698,2]
[404351288,1770071443497,-1540.59,0.00013698,2]
[404351289,1770071443507,-1540.59,0.00013698,2]
[404351290,1770071443517,-1540.59,0.00013698,2]
[404351291,1770071443528,-1540.59,0.00013698,2]
[404351292,1770071443538,-1540.59,0.00013698,2]
[404351293,1770071443548,-1540.59,0.00013698,2]
[404351294,1770071443559,-1540.59,0.00013698,2]
[404351295,1770071443568,-1540.59,0.00013698,2]
[404351296,1770071443577,-1540.59,0.00013698,2]
[404351297,1770071443589,-1540.59,0.00013698,2]
[404351298,1770071443599,-1540.59,0.00013698,2]
[404351299,1770071443608,-1540.59,0.00013698,2]
[404351300,1770071443617,-1540.59,0.00013698,2]
[404351301,1770071443627,-646.39442601,0.00013698,2]
[404351302,1770071443636,-1540.59,0.00013698,2]
[404351303,1770071443645,-1540.59,0.00013698,2]
[404351304,1770071443658,-1540.72680468,0.00013698,2]
[404351305,1770071443668,-639.93,0.00013698,2]
[404351306,1770071443677,-639.93,0.00013698,2]
[404351307,1770071443687,-639.93,0.00013698,2]
[404351308,1770071443696,-639.93,0.00013698,2]
[404351309,1770071443706,-639.93,0.00013698,2]
[404351310,1770071443715,-639.93,0.00013698,2]
[404351311,1770071443724,-639.93,0.00013698,2]
[404351312,1770071443733,-639.93,0.00013698,2]
[404351313,1770071443742,-639.93,0.00013698,2]
[404351314,1770071443753,-639.93,0.00013698,2]
[404351315,1770071443763,-639.93,0.00013698,2]
[404351316,1770071443773,-639.93,0.00013698,2]
[404351317,1770071443782,-639.93,0.00013698,2]
[404351318,1770071443791,-639.93,0.00013698,2]